[Event "*** Titled Tuesday Blitz"]
[Site "Chess.com"]
[Date "2018.06.05"]
[Round "8"]
[White "Jooonaaas1996"]
[Black "Morshynska"]
[Result "1-0"]
[WhiteElo "2305"]
[BlackElo "2214"]
[TimeControl "180+2"]
[EndTime "14:55:24 PDT"]
[Termination "Jooonaaas1996 won by resignation"]

1. e4 {[%clk 0:03:01.9]} 1... e5 {[%clk 0:02:59.9]} 2. Nf3 {[%clk 0:03:02.4]}
2... Nc6 {[%clk 0:03:00.2]} 3. Bb5 {[%clk 0:03:00.9]} 3... a6 {[%clk 0:02:59.7]}
4. Ba4 {[%clk 0:03:01.3]} 4... Nf6 {[%clk 0:03:00.4]} 5. O-O {[%clk 0:03:01.9]}
5... b5 {[%clk 0:03:00.7]} 6. Bb3 {[%clk 0:03:02.5]} 6... Bb7 {[%clk 0:03:01.1]}
7. Re1 {[%clk 0:02:56.1]} 7... Bc5 {[%clk 0:03:00.8]} 8. d3 {[%clk 0:02:54.4]}
8... h6 {[%clk 0:02:52.5]} 9. a3 {[%clk 0:02:53.1]} 9... O-O {[%clk 0:02:50]}
10. Nc3 {[%clk 0:02:53.7]} 10... Nd4 {[%clk 0:02:42.7]} 11. Ba2 {[%clk
0:02:49.5]} 11... Re8 {[%clk 0:02:35.3]} 12. Be3 {[%clk 0:02:45.3]} 12... Nxf3+
{[%clk 0:02:29.1]} 13. Qxf3 {[%clk 0:02:45.6]} 13... Qe7 {[%clk 0:02:13.3]} 14.
Qg3 {[%clk 0:02:42.5]} 14... Bxe3 {[%clk 0:02:10.9]} 15. fxe3 {[%clk 0:02:41.5]}
15... d6 {[%clk 0:01:52.5]} 16. Rf1 {[%clk 0:02:42]} 16... Bc8 {[%clk
0:01:50.2]} 17. Nd5 {[%clk 0:02:37.2]} 17... Nxd5 {[%clk 0:01:49]} 18. Bxd5
{[%clk 0:02:38]} 18... Be6 {[%clk 0:01:49.4]} 19. Bxa8 {[%clk 0:02:38.7]} 19...
Rxa8 {[%clk 0:01:51.2]} 20. a4 {[%clk 0:02:34.9]} 20... b4 {[%clk 0:01:51]} 21.
b3 {[%clk 0:02:35]} 21... a5 {[%clk 0:01:46.8]} 22. Rad1 {[%clk 0:02:26.8]}
22... Ra6 {[%clk 0:01:42.5]} 23. Rf2 {[%clk 0:02:25.3]} 23... Rc6 {[%clk
0:01:40.2]} 24. d4 {[%clk 0:02:25.5]} 24... Rc3 {[%clk 0:01:35.1]} 25. dxe5
{[%clk 0:02:23.7]} 25... dxe5 {[%clk 0:01:37]} 26. Qxe5 {[%clk 0:02:20.9]} 26...
Rxe3 {[%clk 0:01:27.8]} 27. Qd4 {[%clk 0:02:16]} 27... Qg5 {[%clk 0:01:03.1]}
28. Qd8+ {[%clk 0:02:16.2]} 28... Qxd8 {[%clk 0:01:03.1]} 29. Rxd8+ {[%clk
0:02:17.8]} 29... Kh7 {[%clk 0:01:05]} 30. Rd1 {[%clk 0:02:17.8]} 30... Rxe4
{[%clk 0:01:03.6]} 31. h3 {[%clk 0:02:08.7]} 31... Re5 {[%clk 0:00:54.2]} 32.
Kf1 {[%clk 0:02:05.9]} 32... h5 {[%clk 0:00:48.8]} 33. Re2 {[%clk 0:02:04.9]}
33... Rc5 {[%clk 0:00:46.9]} 34. Rd4 {[%clk 0:01:51.5]} 34... Kg6 {[%clk
0:00:38]} 35. Ke1 {[%clk 0:01:47.8]} 35... Bf5 {[%clk 0:00:34.6]} 36. Rc4 {[%clk
0:01:43.2]} 36... Rxc4 {[%clk 0:00:20.1]} 37. bxc4 {[%clk 0:01:45.1]} 37... Be6
{[%clk 0:00:21.2]} 38. Re5 {[%clk 0:01:42.9]} 38... Bxc4 {[%clk 0:00:19.6]} 39.
Rxa5 {[%clk 0:01:42]} 39... c6 {[%clk 0:00:18.1]} 40. Rc5 {[%clk 0:01:41.1]}
40... Bd5 {[%clk 0:00:17]} 41. Rxd5 {[%clk 0:01:39.2]} 41... cxd5 {[%clk
0:00:18.9]} 42. a5 {[%clk 0:01:39.9]} 1-0

[Event "*** Titled Tuesday Blitz"]
[Site "Chess.com"]
[Date "2018.06.05"]
[Round "8"]
[White "VovenRogel"]
[Black "attack2mateU"]
[Result "1/2-1/2"]
[WhiteElo "2633"]
[BlackElo "2686"]
[TimeControl "180+2"]
[EndTime "14:55:36 PDT"]
[Termination "Game drawn by agreement"]

1. d4 {[%clk 0:02:10]} 1... Nf6 {[%clk 0:02:59]} 2. c4 {[%clk 0:02:09.2]} 2...
e6 {[%clk 0:02:55.2]} 3. Nf3 {[%clk 0:02:07.4]} 3... b6 {[%clk 0:02:55.6]} 4. g3
{[%clk 0:02:07.9]} 4... Ba6 {[%clk 0:02:56]} 5. b3 {[%clk 0:02:08.3]} 5... Bb4+
{[%clk 0:02:56.1]} 6. Bd2 {[%clk 0:02:08.5]} 6... Be7 {[%clk 0:02:57.1]} 7. Nc3
{[%clk 0:02:09.3]} 7... O-O {[%clk 0:02:56]} 8. e4 {[%clk 0:02:08.5]} 8... d5
{[%clk 0:02:55.3]} 9. cxd5 {[%clk 0:02:08.9]} 9... Bxf1 {[%clk 0:02:53.4]} 10.
Kxf1 {[%clk 0:02:10.8]} 10... exd5 {[%clk 0:02:54.2]} 11. e5 {[%clk 0:02:11.7]}
11... Ne4 {[%clk 0:02:53.2]} 12. Kg2 {[%clk 0:02:12.3]} 12... Nc6 {[%clk
0:02:48.1]} 13. Re1 {[%clk 0:02:09.9]} 13... Nxc3 {[%clk 0:02:36.6]} 14. Bxc3
{[%clk 0:02:10.4]} 14... Qd7 {[%clk 0:02:37.7]} 15. Rc1 {[%clk 0:02:09.9]} 15...
Nd8 {[%clk 0:02:38]} 16. Qd3 {[%clk 0:02:07.1]} 16... a5 {[%clk 0:02:33.5]} 17.
Bd2 {[%clk 0:02:03.4]} 17... Ne6 {[%clk 0:02:33.7]} 18. h4 {[%clk 0:02:04]}
18... c5 {[%clk 0:02:23.2]} 19. Bg5 {[%clk 0:02:04.1]} 19... cxd4 {[%clk
0:02:09.4]} 20. Bxe7 {[%clk 0:02:03.7]} 20... Qxe7 {[%clk 0:02:11]} 21. Nxd4
{[%clk 0:02:04.2]} 21... Nxd4 {[%clk 0:02:03.9]} 22. Qxd4 {[%clk 0:02:05]} 22...
Qe6 {[%clk 0:02:03.9]} 23. Rc7 {[%clk 0:02:02.6]} 23... Rfe8 {[%clk 0:01:33.4]}
24. a4 {[%clk 0:02:00.1]} 24... h6 {[%clk 0:01:21.4]} 25. Rb7 {[%clk 0:01:58.8]}
25... Rab8 {[%clk 0:01:22]} 26. Rxb8 {[%clk 0:01:55.5]} 26... Rxb8 {[%clk
0:01:23.9]} 27. Rc1 {[%clk 0:01:56.5]} 27... Re8 {[%clk 0:01:23.1]} 28. f4
{[%clk 0:01:54.6]} 28... f6 {[%clk 0:01:11.9]} 29. Re1 {[%clk 0:01:51.9]} 29...
Qc6 {[%clk 0:01:09.5]} 30. Kh3 {[%clk 0:01:47.5]} 30... Qc8+ {[%clk 0:01:04.3]}
31. Kg2 {[%clk 0:01:47.4]} 31... Qc2+ {[%clk 0:01:05.1]} 32. Kh3 {[%clk
0:01:47.1]} 32... Qxb3 {[%clk 0:01:02.8]} 33. Re3 {[%clk 0:01:46.9]} 33... Qc4
{[%clk 0:00:59.2]} 34. Qxb6 {[%clk 0:01:45.6]} 34... d4 {[%clk 0:00:57.6]} 35.
Re1 {[%clk 0:01:42.6]} 35... Qd5 {[%clk 0:00:48.1]} 36. Qb5 {[%clk 0:01:35.3]}
36... Qxb5 {[%clk 0:00:43.4]} 37. axb5 {[%clk 0:01:37.2]} 37... fxe5 {[%clk
0:00:44.2]} 38. fxe5 {[%clk 0:01:34.5]} 38... Rb8 {[%clk 0:00:42.5]} 39. e6
{[%clk 0:01:32]} 39... Kf8 {[%clk 0:00:43.5]} 40. Re4 {[%clk 0:01:32.4]} 40...
Rxb5 {[%clk 0:00:40.6]} 41. Rxd4 {[%clk 0:01:33.1]} 41... Rb7 {[%clk 0:00:39.2]}
42. Rd8+ {[%clk 0:01:32.8]} 42... Ke7 {[%clk 0:00:38]} 43. Ra8 {[%clk
0:01:34.3]} 43... Rb5 {[%clk 0:00:28.5]} 44. Ra6 {[%clk 0:01:35.2]} 44... h5
{[%clk 0:00:28.1]} 45. Kg2 {[%clk 0:01:36.3]} 45... Rf5 {[%clk 0:00:27.9]} 46.
g4 {[%clk 0:01:34.6]} 46... hxg4 {[%clk 0:00:27.5]} 47. Kg3 {[%clk 0:01:35.8]}
47... Re5 {[%clk 0:00:23.9]} 48. Kxg4 {[%clk 0:01:36]} 48... Rxe6 {[%clk
0:00:25]} 49. Rxa5 {[%clk 0:01:37.2]} 49... Kf6 {[%clk 0:00:26.3]} 1/2-1/2

[Event "*** Titled Tuesday Blitz"]
[Site "Chess.com"]
[Date "2018.06.05"]
[Round "8"]
[White "Swarnapuri"]
[Black "Last7Samurai"]
[Result "1/2-1/2"]
[WhiteElo "2477"]
[BlackElo "2689"]
[TimeControl "180+2"]
[EndTime "14:55:36 PDT"]
[Termination "Game drawn by agreement"]

1. d4 {[%clk 0:03:01.9]} 1... d5 {[%clk 0:02:59.7]} 2. Bf4 {[%clk 0:03:02.8]}
2... Nf6 {[%clk 0:03:00.1]} 3. e3 {[%clk 0:03:04.2]} 3... e6 {[%clk 0:03:00.9]}
4. Nd2 {[%clk 0:03:05.4]} 4... c5 {[%clk 0:03:00.8]} 5. c3 {[%clk 0:03:05.5]}
5... Bd6 {[%clk 0:03:01.7]} 6. Bg3 {[%clk 0:03:01.8]} 6... O-O {[%clk
0:03:01.4]} 7. Ngf3 {[%clk 0:02:59.7]} 7... Qc7 {[%clk 0:03:02.2]} 8. Bxd6
{[%clk 0:02:44.6]} 8... Qxd6 {[%clk 0:03:04.1]} 9. Ne5 {[%clk 0:02:46]} 9... b6
{[%clk 0:03:01.8]} 10. Bd3 {[%clk 0:02:44.5]} 10... Ba6 {[%clk 0:03:01.4]} 11.
Bxa6 {[%clk 0:02:40.4]} 11... Nxa6 {[%clk 0:03:03.3]} 12. O-O {[%clk 0:02:40.4]}
12... Nb8 {[%clk 0:03:03.8]} 13. f4 {[%clk 0:02:40.3]} 13... Nc6 {[%clk
0:03:00]} 14. g4 {[%clk 0:02:27.8]} 14... Nd7 {[%clk 0:02:59.8]} 15. g5 {[%clk
0:02:24.9]} 15... f6 {[%clk 0:02:58.4]} 16. gxf6 {[%clk 0:02:10.3]} 16... gxf6
{[%clk 0:03:00.3]} 17. Nxc6 {[%clk 0:01:59.4]} 17... Qxc6 {[%clk 0:03:02.2]} 18.
Kh1 {[%clk 0:01:58.4]} 18... Kh8 {[%clk 0:03:01.5]} 19. Qh5 {[%clk 0:01:55.5]}
19... Qd6 {[%clk 0:02:48.7]} 20. Rf3 {[%clk 0:01:43.4]} 20... f5 {[%clk
0:02:41.5]} 21. Rg1 {[%clk 0:01:40.5]} 21... Qe7 {[%clk 0:02:35.3]} 22. Rfg3
{[%clk 0:01:34]} 22... Nf6 {[%clk 0:02:31.3]} 23. Qh4 {[%clk 0:01:34.7]} 23...
Rf7 {[%clk 0:02:20.8]} 24. Qg5 {[%clk 0:01:22.4]} 24... Ng4 {[%clk 0:02:08.8]}
25. Nf3 {[%clk 0:01:06.4]} 25... Qxg5 {[%clk 0:02:00.1]} 26. Nxg5 {[%clk
0:01:06]} 26... Re7 {[%clk 0:02:01.2]} 27. h3 {[%clk 0:00:44.8]} 27... Nf2+
{[%clk 0:01:58.8]} 28. Kg2 {[%clk 0:00:43.9]} 28... Ne4 {[%clk 0:01:58.9]} 29.
Nxe4 {[%clk 0:00:41]} 29... dxe4 {[%clk 0:02:00.1]} 30. Rd1 {[%clk 0:00:38.8]}
30... Rd8 {[%clk 0:01:57.1]} 31. Kf2 {[%clk 0:00:38.2]} 31... cxd4 {[%clk
0:01:54.1]} 32. Rxd4 {[%clk 0:00:37.9]} 32... Rxd4 {[%clk 0:01:54.4]} 33. exd4
{[%clk 0:00:39.8]} 33... b5 {[%clk 0:01:54.6]} 34. Ke3 {[%clk 0:00:40.2]} 34...
Rg7 {[%clk 0:01:33.1]} 35. Rxg7 {[%clk 0:00:37.6]} 35... Kxg7 {[%clk 0:01:35]}
36. b3 {[%clk 0:00:37.2]} 36... Kf7 {[%clk 0:01:31.4]} 37. c4 {[%clk 0:00:37.8]}
37... b4 {[%clk 0:01:26]} 38. c5 {[%clk 0:00:36.3]} 1/2-1/2

[Event "*** Titled Tuesday Blitz"]
[Site "Chess.com"]
[Date "2018.06.05"]
[Round "8"]
[White "ChessicallyInclined"]
[Black "Albertu"]
[Result "1-0"]
[WhiteElo "2254"]
[BlackElo "2317"]
[TimeControl "180+2"]
[EndTime "14:55:36 PDT"]
[Termination "ChessicallyInclined won by checkmate"]

1. d4 {[%clk 0:03:01.9]} 1... b5 {[%clk 0:02:56.8]} 2. e4 {[%clk 0:02:59.4]}
2... a6 {[%clk 0:02:58.2]} 3. a4 {[%clk 0:02:59.4]} 3... Bb7 {[%clk 0:02:59.6]}
4. Bd3 {[%clk 0:02:59]} 4... Nf6 {[%clk 0:02:59.2]} 5. Nd2 {[%clk 0:02:59.5]}
5... b4 {[%clk 0:02:57]} 6. Ngf3 {[%clk 0:02:57.2]} 6... d5 {[%clk 0:02:57.5]}
7. e5 {[%clk 0:02:56.4]} 7... Ne4 {[%clk 0:02:58.9]} 8. Qe2 {[%clk 0:02:56.3]}
8... c5 {[%clk 0:02:57.3]} 9. Nxe4 {[%clk 0:02:54.3]} 9... dxe4 {[%clk
0:02:57.2]} 10. Bxe4 {[%clk 0:02:55.5]} 10... Nc6 {[%clk 0:02:58.7]} 11. dxc5
{[%clk 0:02:27.6]} 11... e6 {[%clk 0:02:59.4]} 12. Be3 {[%clk 0:02:26.7]} 12...
Qa5 {[%clk 0:02:58.8]} 13. Qc4 {[%clk 0:02:19.7]} 13... b3+ {[%clk 0:02:55.1]}
14. c3 {[%clk 0:02:19.6]} 14... Rb8 {[%clk 0:02:50.8]} 15. O-O {[%clk
0:02:11.7]} 15... Be7 {[%clk 0:02:50.7]} 16. Qxb3 {[%clk 0:02:07.7]} 16... O-O
{[%clk 0:02:50.3]} 17. Qc4 {[%clk 0:02:05.3]} 17... Qc7 {[%clk 0:02:42]} 18. Bd4
{[%clk 0:01:29]} 18... Na5 {[%clk 0:02:40.7]} 19. Qd3 {[%clk 0:01:27.7]} 19...
Bxe4 {[%clk 0:02:40.9]} 20. Qxe4 {[%clk 0:01:29.6]} 20... Rxb2 {[%clk
0:02:42.1]} 21. Rab1 {[%clk 0:01:19.6]} 21... Ra2 {[%clk 0:02:30.2]} 22. h4
{[%clk 0:00:45.9]} 22... Rxa4 {[%clk 0:02:29.4]} 23. h5 {[%clk 0:00:42.9]} 23...
h6 {[%clk 0:02:17.2]} 24. Qe3 {[%clk 0:00:29.7]} 24... Rc8 {[%clk 0:02:08.7]}
25. Nd2 {[%clk 0:00:17.1]} 25... Bxc5 {[%clk 0:02:05.4]} 26. Ne4 {[%clk
0:00:14.7]} 26... Nc4 {[%clk 0:01:59.5]} 27. Qf4 {[%clk 0:00:12.3]} 27... Bxd4
{[%clk 0:01:41]} 28. cxd4 {[%clk 0:00:14.2]} 28... Nb6 {[%clk 0:01:42.4]} 29.
Nd6 {[%clk 0:00:13.2]} 29... Nd5 {[%clk 0:01:42.6]} 30. Qf3 {[%clk 0:00:11.4]}
30... Rf8 {[%clk 0:01:38.6]} 31. Rb7 {[%clk 0:00:11.7]} 31... Qc3 {[%clk
0:01:39]} 32. Qxc3 {[%clk 0:00:03.9]} 32... Nxc3 {[%clk 0:01:39.5]} 33. g3
{[%clk 0:00:04.6]} 33... Rxd4 {[%clk 0:01:38.1]} 34. Kg2 {[%clk 0:00:05.4]}
34... Rd5 {[%clk 0:01:38.7]} 35. Rc1 {[%clk 0:00:05.7]} 35... Ne2 {[%clk
0:01:36.8]} 36. Rcc7 {[%clk 0:00:05.4]} 36... Rxe5 {[%clk 0:01:36.2]} 37. Nxf7
{[%clk 0:00:06.3]} 37... Rxf7 {[%clk 0:01:30.7]} 38. Rxf7 {[%clk 0:00:06.7]}
38... Rg5 {[%clk 0:01:31.5]} 39. f4 {[%clk 0:00:06.3]} 39... Rc5 {[%clk
0:01:11.4]} 40. Rxg7+ {[%clk 0:00:06.2]} 40... Kf8 {[%clk 0:01:12.9]} 41. Rh7
{[%clk 0:00:07.1]} 41... Ke8 {[%clk 0:01:14.4]} 42. Rh8# {[%clk 0:00:08.2]} 1-0

[Event "*** Titled Tuesday Blitz"]
[Site "Chess.com"]
[Date "2018.06.05"]
[Round "8"]
[White "andrewtnb"]
[Black "Kimster98"]
[Result "1/2-1/2"]
[WhiteElo "2390"]
[BlackElo "2538"]
[TimeControl "180+2"]
[EndTime "14:55:49 PDT"]
[Termination "Game drawn by repetition"]

1. d4 {[%clk 0:02:52.8]} 1... Nf6 {[%clk 0:02:59.6]} 2. Nf3 {[%clk 0:02:54]}
2... d5 {[%clk 0:02:51]} 3. c4 {[%clk 0:02:52.2]} 3... e6 {[%clk 0:02:51.9]} 4.
Nc3 {[%clk 0:02:51.9]} 4... Be7 {[%clk 0:02:52.9]} 5. Bg5 {[%clk 0:02:51]} 5...
Nbd7 {[%clk 0:02:53.4]} 6. e3 {[%clk 0:02:50.8]} 6... h6 {[%clk 0:02:54.5]} 7.
Bh4 {[%clk 0:02:49]} 7... O-O {[%clk 0:02:55.5]} 8. Be2 {[%clk 0:02:45]} 8... c5
{[%clk 0:02:48.8]} 9. cxd5 {[%clk 0:02:44.3]} 9... Nxd5 {[%clk 0:02:50.7]} 10.
Bxe7 {[%clk 0:02:43.2]} 10... Nxe7 {[%clk 0:02:52.6]} 11. O-O {[%clk 0:02:42.4]}
11... b6 {[%clk 0:02:54]} 12. Qa4 {[%clk 0:02:38.8]} 12... cxd4 {[%clk 0:02:45]}
13. Nxd4 {[%clk 0:02:36.7]} 13... Nc5 {[%clk 0:02:45.9]} 14. Qc2 {[%clk
0:02:35]} 14... Bb7 {[%clk 0:02:44.9]} 15. Rfd1 {[%clk 0:02:29.7]} 15... Qb8
{[%clk 0:02:33.5]} 16. b4 {[%clk 0:02:25.9]} 16... Na6 {[%clk 0:02:33.3]} 17.
Qb3 {[%clk 0:02:20.5]} 17... Nc7 {[%clk 0:02:30.1]} 18. Rac1 {[%clk 0:02:14]}
18... Ncd5 {[%clk 0:02:25.7]} 19. Nxd5 {[%clk 0:02:10.2]} 19... Nxd5 {[%clk
0:02:25.6]} 20. Nc6 {[%clk 0:01:35.7]} 20... Bxc6 {[%clk 0:02:04.2]} 21. Rxc6
{[%clk 0:01:35.3]} 21... Rc8 {[%clk 0:02:05.1]} 22. Rxc8+ {[%clk 0:01:27.5]}
22... Qxc8 {[%clk 0:02:07]} 23. Bf3 {[%clk 0:01:28.2]} 23... a5 {[%clk
0:02:07.8]} 24. Bxd5 {[%clk 0:01:24.6]} 24... exd5 {[%clk 0:02:09.7]} 25. Qxd5
{[%clk 0:01:05.5]} 25... axb4 {[%clk 0:02:08.3]} 26. Qb3 {[%clk 0:01:03.1]}
26... Qc3 {[%clk 0:02:05.1]} 27. g3 {[%clk 0:00:58.9]} 27... g6 {[%clk
0:01:48.8]} 28. Rb1 {[%clk 0:00:59.1]} 28... Qxb3 {[%clk 0:01:32.8]} 29. Rxb3
{[%clk 0:00:59.8]} 29... Rxa2 {[%clk 0:01:33.6]} 30. Rxb4 {[%clk 0:01:00.5]}
30... Ra6 {[%clk 0:01:35.2]} 31. Rc4 {[%clk 0:00:49.7]} 31... Ra8 {[%clk
0:01:33.3]} 32. Rb4 {[%clk 0:00:46.3]} 32... Rb8 {[%clk 0:01:33.2]} 33. Kg2
{[%clk 0:00:45.9]} 33... h5 {[%clk 0:01:34.3]} 34. Kf3 {[%clk 0:00:46.7]} 34...
Kf8 {[%clk 0:01:35.6]} 35. Ke4 {[%clk 0:00:47.6]} 35... Ke7 {[%clk 0:01:37.2]}
36. Kd5 {[%clk 0:00:48.6]} 36... Kd7 {[%clk 0:01:38.2]} 37. Rf4 {[%clk
0:00:46.4]} 37... Ke7 {[%clk 0:01:38.3]} 38. Kc6 {[%clk 0:00:44.4]} 38... Ke6
{[%clk 0:01:28.9]} 39. Re4+ {[%clk 0:00:37.7]} 39... Kf6 {[%clk 0:01:29.7]} 40.
Kc7 {[%clk 0:00:36]} 40... Ra8 {[%clk 0:01:27.2]} 41. Kxb6 {[%clk 0:00:36.5]}
41... Rc8 {[%clk 0:01:24.3]} 42. h4 {[%clk 0:00:35.5]} 42... Rc2 {[%clk
0:01:24.4]} 43. Rf4+ {[%clk 0:00:36.3]} 43... Kg7 {[%clk 0:01:25.7]} 44. Kb5
{[%clk 0:00:36.9]} 44... Kg8 {[%clk 0:01:24]} 45. Kb4 {[%clk 0:00:37.4]} 45...
Kg7 {[%clk 0:01:24.6]} 46. Kb3 {[%clk 0:00:38.4]} 46... Rc1 {[%clk 0:01:25.7]}
47. Kb2 {[%clk 0:00:37.3]} 47... Rc7 {[%clk 0:01:18.3]} 48. Rd4 {[%clk
0:00:37.1]} 48... Kf6 {[%clk 0:01:16.9]} 49. Rf4+ {[%clk 0:00:36.3]} 49... Kg7
{[%clk 0:01:17.8]} 50. Kb3 {[%clk 0:00:37.3]} 50... Rc1 {[%clk 0:01:18.4]} 51.
Kb2 {[%clk 0:00:38.3]} 51... Rc7 {[%clk 0:01:19]} 52. Kb3 {[%clk 0:00:37.8]}
52... Rc1 {[%clk 0:01:19.8]} 1/2-1/2

[Event "*** Titled Tuesday Blitz"]
[Site "Chess.com"]
[Date "2018.06.05"]
[Round "8"]
[White "Ali_rastbod"]
[Black "WPWPWP-2015"]
[Result "0-1"]
[WhiteElo "2487"]
[BlackElo "2397"]
[TimeControl "180+2"]
[EndTime "14:55:59 PDT"]
[Termination "WPWPWP-2015 won by checkmate"]

1. Nf3 {[%clk 0:03:01.9]} 1... c5 {[%clk 0:02:56.1]} 2. g3 {[%clk 0:03:02.1]}
2... e6 {[%clk 0:02:56.4]} 3. Bg2 {[%clk 0:03:02.4]} 3... Nc6 {[%clk 0:02:56.7]}
4. O-O {[%clk 0:03:02.9]} 4... Qc7 {[%clk 0:02:57.5]} 5. d4 {[%clk 0:03:02.1]}
5... cxd4 {[%clk 0:02:57]} 6. Nxd4 {[%clk 0:03:04]} 6... a6 {[%clk 0:02:57.7]}
7. c4 {[%clk 0:03:05.4]} 7... Nf6 {[%clk 0:02:57.3]} 8. Nc3 {[%clk 0:03:07]}
8... Nxd4 {[%clk 0:02:57.9]} 9. Qxd4 {[%clk 0:03:07.3]} 9... Be7 {[%clk
0:02:54.4]} 10. Bf4 {[%clk 0:03:07.1]} 10... d6 {[%clk 0:02:55]} 11. Be3 {[%clk
0:03:03.1]} 11... O-O {[%clk 0:02:53.6]} 12. Rac1 {[%clk 0:03:04.2]} 12... Bd7
{[%clk 0:02:50.8]} 13. Rfd1 {[%clk 0:03:05.7]} 13... Bc6 {[%clk 0:02:51.1]} 14.
Nd5 {[%clk 0:03:07.1]} 14... Qd8 {[%clk 0:02:35.8]} 15. Nxe7+ {[%clk 0:03:06.9]}
15... Qxe7 {[%clk 0:02:36]} 16. Bxc6 {[%clk 0:03:07.9]} 16... bxc6 {[%clk
0:02:36]} 17. Qxd6 {[%clk 0:03:09.8]} 17... Qb7 {[%clk 0:02:33.6]} 18. b3 {[%clk
0:03:10.8]} 18... a5 {[%clk 0:02:29.7]} 19. Rb1 {[%clk 0:03:05.4]} 19... h6
{[%clk 0:02:28.5]} 20. Qe5 {[%clk 0:03:04.5]} 20... Nd7 {[%clk 0:02:16.9]} 21.
Qf4 {[%clk 0:02:56.2]} 21... Rfd8 {[%clk 0:02:00.2]} 22. Rd6 {[%clk 0:02:53.7]}
22... Nf8 {[%clk 0:01:55.3]} 23. Rbd1 {[%clk 0:02:48.2]} 23... Rdc8 {[%clk
0:01:53.2]} 24. h4 {[%clk 0:02:41]} 24... a4 {[%clk 0:01:51.2]} 25. Qg4 {[%clk
0:02:36]} 25... axb3 {[%clk 0:01:43.1]} 26. axb3 {[%clk 0:02:28.5]} 26... f5
{[%clk 0:01:22.7]} 27. Qd4 {[%clk 0:02:19]} 27... Qxb3 {[%clk 0:01:20.9]} 28. g4
{[%clk 0:02:19.8]} 28... Ra4 {[%clk 0:01:17]} 29. Rc1 {[%clk 0:02:12.4]} 29...
c5 {[%clk 0:01:10.7]} 30. Qf4 {[%clk 0:01:53.7]} 30... Ng6 {[%clk 0:01:08.4]}
31. Qg3 {[%clk 0:01:51.6]} 31... Rxc4 {[%clk 0:01:03.8]} 32. Rxc4 {[%clk
0:01:30.3]} 32... Qxc4 {[%clk 0:01:04.1]} 33. gxf5 {[%clk 0:01:31.6]} 33... Nxh4
{[%clk 0:01:01.2]} 34. f6 {[%clk 0:00:58.2]} 34... Nf5 {[%clk 0:01:00.2]} 35.
Qg6 {[%clk 0:00:59.2]} 35... Ra8 {[%clk 0:00:43.4]} 36. f7+ {[%clk 0:00:41.4]}
36... Kf8 {[%clk 0:00:41.5]} 37. Rxe6 {[%clk 0:00:42.5]} 37... Ra1+ {[%clk
0:00:36.8]} 38. Kh2 {[%clk 0:00:21.8]} 38... Qh4+ {[%clk 0:00:34.4]} 39. Kg2
{[%clk 0:00:23.2]} 39... Qh1# {[%clk 0:00:34.3]} 0-1

[Event "*** Titled Tuesday Blitz"]
[Site "Chess.com"]
[Date "2018.06.05"]
[Round "8"]
[White "DSCC1"]
[Black "Muguet7"]
[Result "0-1"]
[WhiteElo "2142"]
[BlackElo "2342"]
[TimeControl "180+2"]
[EndTime "14:56:01 PDT"]
[Termination "Muguet7 won by resignation"]

1. d4 {[%clk 0:03:01.9]} 1... Nf6 {[%clk 0:03:00.2]} 2. Nf3 {[%clk 0:03:03]}
2... e6 {[%clk 0:03:00.2]} 3. Bf4 {[%clk 0:03:04.2]} 3... d5 {[%clk 0:02:58.5]}
4. e3 {[%clk 0:03:05.4]} 4... Bd6 {[%clk 0:02:59.1]} 5. Bg3 {[%clk 0:03:05.5]}
5... Ne4 {[%clk 0:02:55.1]} 6. Nbd2 {[%clk 0:03:05.8]} 6... Nxg3 {[%clk
0:02:54.9]} 7. hxg3 {[%clk 0:03:06.4]} 7... c5 {[%clk 0:02:50.9]} 8. c3 {[%clk
0:03:07.7]} 8... Nc6 {[%clk 0:02:49.3]} 9. Bd3 {[%clk 0:03:09.1]} 9... g6 {[%clk
0:02:44]} 10. dxc5 {[%clk 0:03:02.3]} 10... Bxc5 {[%clk 0:02:44.4]} 11. e4
{[%clk 0:03:03.8]} 11... d4 {[%clk 0:02:40.2]} 12. Nb3 {[%clk 0:03:00.2]} 12...
dxc3 {[%clk 0:02:27.3]} 13. Nxc5 {[%clk 0:02:55.7]} 13... cxb2 {[%clk
0:02:26.3]} 14. Rb1 {[%clk 0:02:50.1]} 14... Qa5+ {[%clk 0:02:25.1]} 15. Qd2
{[%clk 0:02:45.7]} 15... Qxc5 {[%clk 0:02:25.3]} 16. Rxb2 {[%clk 0:02:40]} 16...
a6 {[%clk 0:02:13.7]} 17. O-O {[%clk 0:02:32.4]} 17... Ne5 {[%clk 0:02:03.1]}
18. Rc1 {[%clk 0:01:45.6]} 18... Nxf3+ {[%clk 0:01:57.8]} 19. gxf3 {[%clk
0:01:47.5]} 19... Qe7 {[%clk 0:01:51.5]} 20. Qh6 {[%clk 0:00:57.3]} 20... Qf8
{[%clk 0:01:29.9]} 21. Qf4 {[%clk 0:00:43]} 21... Qg7 {[%clk 0:01:25.4]} 22. Rb6
{[%clk 0:00:17.9]} 22... e5 {[%clk 0:00:59.4]} 23. Qe3 {[%clk 0:00:18.7]} 23...
O-O {[%clk 0:01:00]} 24. Bc4 {[%clk 0:00:20]} 24... Rd8 {[%clk 0:00:51.1]} 25.
Bd5 {[%clk 0:00:20.1]} 25... Rb8 {[%clk 0:00:46.1]} 26. Rcb1 {[%clk 0:00:19.4]}
26... Rd7 {[%clk 0:00:38.3]} 27. Qc3 {[%clk 0:00:20.2]} 27... h6 {[%clk
0:00:34.2]} 28. Rxa6 {[%clk 0:00:20.4]} 28... Kh7 {[%clk 0:00:31.6]} 29. Rab6
{[%clk 0:00:19.3]} 29... f6 {[%clk 0:00:30.9]} 30. R1b5 {[%clk 0:00:16.6]} 30...
Rc7 {[%clk 0:00:31.9]} 31. Qb2 {[%clk 0:00:16.1]} 31... h5 {[%clk 0:00:28.1]}
32. a4 {[%clk 0:00:16.9]} 32... h4 {[%clk 0:00:26.5]} 33. g4 {[%clk 0:00:16.2]}
33... Qh6 {[%clk 0:00:24.1]} 34. a5 {[%clk 0:00:13.8]} 34... Rc1+ {[%clk
0:00:24.7]} 35. Kh2 {[%clk 0:00:11.2]} 35... Qf4+ {[%clk 0:00:25.1]} 36. Kg2
{[%clk 0:00:11.4]} 36... h3+ {[%clk 0:00:25.9]} 0-1